fUSD/lending_fUSD_20240424
["ID","MTS","AMOUNT","RATE_DAILY","PERIOD"]
[323422168,1713976231897,-1430.66,9.688e-05,2]
[323422171,1713976231908,-2862.4786,9.8e-05,2]
[323422172,1713976231917,-150.3,9.913e-05,2]
[323422174,1713976231927,-323.90952101,0.0001,2]
[323422177,1713976231936,-303.89,0.0001,3]
[323422178,1713976231946,-150.3,0.00010165,2]
[323422181,1713976231955,-691.39,0.00010451,2]
[323422183,1713976231964,-1414.79,0.00010499,2]
[323422185,1713976231974,-1414.79,0.00010502,2]
[323422187,1713976231983,-1414.79,0.00010505,2]
[323422189,1713976231992,-570.64712779,0.00010507,2]
[323422191,1713976232005,-844.14287221,0.00010507,2]
[323422193,1713976232015,-1414.79,0.0001051,2]
[323422195,1713976232024,-1414.79,0.00010513,2]
[323422197,1713976232034,-1414.79,0.00010516,2]
[323422199,1713976232044,-1414.79,0.00010518,2]
[323422201,1713976232054,-1414.79,0.00010521,2]
[323422203,1713976232064,-1414.79,0.00010524,2]
[323422204,1713976232074,-744.06351755,0.00010527,2]
[323422207,1713976232102,-670.72648245,0.00010527,2]
[323422208,1713976232111,-329.27351755,0.00010529,2]
[323422209,1713976232125,-1085.51648245,0.00010529,2]
[323422210,1713976232135,-1414.79,0.00010532,2]
[323422211,1713976232144,-1414.79,0.00010535,2]
[323422212,1713976232154,-1414.79,0.00010538,2]
[323422213,1713976232164,-369.58508176,0.00010541,2]
[323422214,1713976232276,-1045.20491824,0.00010541,2]
[323422215,1713976232286,-1414.79,0.00010543,2]
[323422216,1713976232295,-1414.79,0.00010546,2]
[323422217,1713976232305,-1414.79,0.00010549,2]
[323422218,1713976232314,-1414.79,0.00010552,2]
[323422219,1713976232324,-688.0,0.00010592,2]
[323422220,1713976232334,-2803.8621,0.00010858,2]
[323422221,1713976232343,-1000.0,0.00010858,2]
[323422222,1713976232353,-312.0,0.00010862,2]
[323422223,1713976232362,-161.49803489,0.00010956,2]
[323422224,1713976232374,-309.38774396,0.00010957,2]
[323422225,1713976232384,-500.0,0.00010958,2]
[323422226,1713976232394,-500.0,0.00010958,2]
[323422227,1713976232404,-410.38860995,0.00010958,2]
[323422267,1713976237606,-89.61139005,0.00010958,2]
[323422270,1713976237618,-181.60056282,0.00010958,2]
[323422272,1713976237635,-318.39943718,0.00010958,2]
[323422274,1713976237646,-68.17977457,0.00010958,2]
[323422276,1713976237658,-431.82022543,0.00010958,2]
[323422278,1713976237668,-469.37608495,0.00010958,2]
[323422281,1713976237680,-37.43467105,0.00010958,2]
[323422282,1713976237690,-399.20004051,0.00010958,2]
[323422283,1713976237735,-100.79995949,0.00010958,2]
[323422284,1713976237746,-408.36793413,0.00010958,2]
[323422285,1713976237758,-91.63206587,0.00010958,2]
[323422286,1713976237768,-500.0,0.00010958,2]
[323422287,1713976237778,-92.6098347,0.00010958,2]
[323422288,1713976237792,-407.3901653,0.00010958,2]
[323422289,1713976237805,-83.34952486,0.00010958,2]
[323422290,1713976237835,-416.65047514,0.00010958,2]
[323422291,1713976237845,-500.0,0.00010958,2]
[323422292,1713976237855,-500.0,0.00010958,2]
[323422293,1713976237866,-361.9667987,0.00010958,2]
[323422294,1713976237884,-473.05233594,0.00010958,2]
[323422295,1713976237895,-500.66376126,0.00010958,2]
[323422297,1713976237906,-480.26453974,0.00010958,2]
[323422298,1713976237936,-19.73546026,0.00010958,2]
[323422299,1713976237947,-500.0,0.00010958,2]
[323422300,1713976237957,-94.39203974,0.00010958,2]
[323422302,1713976237971,-405.60796026,0.00010958,2]
[323422304,1713976237981,-500.0,0.00010958,2]
[323422306,1713976237991,-500.0,0.00010958,2]
[323422308,1713976238002,-500.0,0.00010958,2]
[323422310,1713976238013,-35.33713538,0.00010958,2]
[323422313,1713976238026,-464.66286462,0.00010958,2]
[323422316,1713976238036,-3920.28322326,0.00010958,2]
[323422319,1713976238046,-500.0,0.00010958,2]
[323422322,1713976238056,-500.0,0.00010958,2]
[323422325,1713976238066,-423.51905006,0.00010958,2]
[323422328,1713976238077,-500.0,0.00010958,2]
[323422331,1713976238086,-500.0,0.00010958,2]
[323422333,1713976238096,-500.0,0.00010958,2]
[323422336,1713976238106,-531.68,0.00010958,2]
[323422338,1713976238118,-129.02679675,0.00010958,2]
[323422341,1713976238133,-370.97320325,0.00010958,2]
[323422343,1713976238142,-500.0,0.00010958,2]
[323422344,1713976238151,-500.0,0.00010958,2]
[323422346,1713976238162,-500.0,0.00010958,2]
[323422348,1713976238171,-500.0,0.00010958,2]
[323422351,1713976238181,-500.0,0.00010958,2]
[323422352,1713976238192,-260.90151675,0.00010958,2]
[323422355,1713976238204,-239.09848325,0.00010958,2]
[323422357,1713976238216,-500.0,0.00010958,2]
[323422359,1713976238225,-500.0,0.00010958,2]
[323422361,1713976238235,-500.0,0.00010958,2]
[323422363,1713976238244,-500.0,0.00010958,2]
[323422365,1713976238255,-632.82,0.00010958,2]
[323422367,1713976238266,-183.43278066,0.00010958,2]
[323422369,1713976238279,-607.74721934,0.00010958,2]
[323422371,1713976238289,-500.0,0.00010958,2]
[323422373,1713976238300,-500.0,0.00010958,2]
[323422375,1713976238310,-500.0,0.00010958,2]
[323422377,1713976238320,-500.0,0.00010958,2]
[323422379,1713976238330,-507.83,0.00010958,2]
[323422381,1713976238340,-500.0,0.00010958,2]
[323422383,1713976238350,-480.2948186,0.00010958,2]
[323422385,1713976238362,-254.1051814,0.00010958,2]
[323422387,1713976238374,-500.0,0.00010958,2]
[323422389,1713976238384,-500.0,0.00010958,2]
[323422391,1713976238394,-500.0,0.00010958,2]
[323422393,1713976238404,-421.83,0.00010958,2]
[323422395,1713976238416,-500.0,0.00010958,2]
[323422397,1713976238426,-500.0,0.00010958,2]
[323422399,1713976238436,-500.0,0.00010958,2]
[323422401,1713976238446,-500.0,0.00010958,2]
[323422403,1713976238455,-500.0,0.00010958,2]
[323422405,1713976238465,-820.26,0.00010958,2]
[323422407,1713976238474,-500.0,0.00010958,2]
[323422409,1713976238484,-500.0,0.00010958,2]
[323422429,1713976238494,-500.0,0.00010958,2]
[323422437,1713976238750,-1759.19,0.00010958,2]
[323422439,1713976238760,-740.61,0.00010958,2]
[323422441,1713976238770,-500.0,0.00010958,2]
[323422443,1713976238780,-500.0,0.00010958,2]
[323422446,1713976238790,-500.0,0.00010958,2]
[323422448,1713976238803,-500.0,0.00010958,2]
[323422450,1713976238813,-571.82,0.00010958,2]
[323422451,1713976238823,-500.0,0.00010958,2]
[323422453,1713976238833,-500.0,0.00010958,2]
[323422456,1713976238846,-500.0,0.00010958,2]
[323422458,1713976238856,-500.0,0.00010958,2]
[323422459,1713976238868,-500.0,0.00010958,2]
[323422462,1713976238883,-500.0,0.00010958,2]
[323422464,1713976238894,-634.48,0.00010958,2]
[323422466,1713976238904,-500.0,0.00010958,2]
[323422467,1713976238914,-500.0,0.00010958,2]
[323422470,1713976238924,-500.0,0.00010958,2]
[323422471,1713976238934,-500.0,0.00010958,2]
[323422474,1713976238944,-1181.58,0.00010958,2]
[323422476,1713976238954,-500.0,0.00010958,2]
[323422478,1713976238965,-603.08,0.00010958,2]
[323422480,1713976238974,-710.55,0.00010958,2]
[323422482,1713976238984,-644.08,0.00010958,2]
[323422484,1713976238997,-500.0,0.00010958,2]
[323422485,1713976239009,-569.21,0.00010958,2]
[323422487,1713976239020,-1086.95,0.00010958,2]
[323422490,1713976239030,-500.0,0.00010958,2]
[323422492,1713976239041,-500.0,0.00010958,2]
[323422494,1713976239051,-1712.03,0.00010958,2]
[323422495,1713976239062,-500.0,0.00010958,2]
[323422498,1713976239074,-500.0,0.00010958,2]
[323422500,1713976239084,-1159.56,0.00010958,2]
[323422502,1713976239093,-1454.53,0.00010958,2]
[323422504,1713976239102,-500.0,0.00010958,2]
[323422506,1713976239112,-1161.19,0.00010958,2]
[323422508,1713976239126,-349.12732083,0.00010958,2]
[323422510,1713976239135,-500.0,0.00010958,2]
[323422512,1713976239144,-500.0,0.00010958,2]
[323422513,1713976239154,-500.0,0.00010958,2]
[323422516,1713976239164,-819.33,0.00010958,2]
[323422517,1713976239173,-500.0,0.00010958,2]
[323422519,1713976239182,-377.98737552,0.00010958,2]
[323422584,1713976239644,-195.52262448,0.00010958,2]
[323422586,1713976239653,-122.73043982,0.00010958,2]
[323422588,1713976239664,-322.00006,0.00010958,2]
[323422591,1713976239676,-380.2042337,0.00010958,2]
[323422600,1713976239755,-399.11526648,0.00010958,2]
[323422602,1713976239765,-245.20171181,0.00010958,2]
[323422643,1713976240139,-254.79828819,0.00010958,2]
[323422645,1713976240148,-520.44,0.00010958,2]
[323422647,1713976240158,-228.54,0.00010958,2]
[323422649,1713976240167,-319.08985614,0.00010958,2]
[323422651,1713976240179,-180.91014386,0.00010958,2]
[323422653,1713976240188,-274.64985613,0.00010958,2]
[323422656,1713976240207,-225.35014387,0.00010958,2]
[323422657,1713976240216,-246.61,0.00010958,2]
[323422658,1713976240226,-500.0,0.00010958,2]
[323422659,1713976240235,-500.0,0.00010958,2]
[323422660,1713976240244,-611.6841786,0.00010958,2]
[323422661,1713976240261,-391.0958214,0.00010958,2]
[323422662,1713976240271,-351.89418699,0.00010958,2]
[323422663,1713976240285,-148.10581301,0.00010958,2]
[323422664,1713976240294,-473.864757,0.00010958,2]
[323422665,1713976240306,-26.135243,0.00010958,2]
[323422666,1713976240316,-331.854757,0.00010958,2]
[323422674,1713976240418,-168.145243,0.00010958,2]
[323422676,1713976240428,-486.13977138,0.00010958,2]
[323422679,1713976240452,-117.56022862,0.00010958,2]
[323422681,1713976240461,-519.47977138,0.00010958,2]
[323422684,1713976240473,-209.68022862,0.00010958,2]
[323422686,1713976240482,-308.31577138,0.00010958,2]
[323422688,1713976240495,-191.68422862,0.00010958,2]
[323422690,1713976240505,-500.0,0.00010958,2]
[323422692,1713976240515,-2225.58,0.00010958,2]
[323422694,1713976240524,-538.13,0.00010958,2]
[323422696,1713976240534,-500.0,0.00010958,2]
[323422698,1713976240543,-1030.06475133,0.00010958,2]
[323422702,1713976240579,-6.52524867,0.00010958,2]
[323422704,1713976240590,-500.0,0.00010958,2]
[323422706,1713976240600,-571.88,0.00010958,2]
[323422708,1713976240609,-500.0,0.00010958,2]
[323422710,1713976240619,-500.0,0.00010958,2]
[323422712,1713976240634,-500.0,0.00010958,2]
[323422715,1713976240643,-500.0,0.00010958,2]
[323422716,1713976240653,-1710.7,0.00010958,2]
[323422718,1713976240664,-500.0,0.00010958,2]
[323422721,1713976240675,-500.0,0.00010958,2]
[323422722,1713976240685,-500.0,0.00010958,2]
[323422724,1713976240695,-500.0,0.00010958,2]
[323422727,1713976240706,-500.0,0.00010958,2]
[323422729,1713976240715,-500.0,0.00010958,2]
[323422730,1713976240725,-648.04,0.00010958,2]
[323422732,1713976240735,-500.0,0.00010958,2]
[323422735,1713976240744,-838.34,0.00010958,2]
[323422737,1713976240754,-500.0,0.00010958,2]
[323422739,1713976240764,-500.0,0.00010958,2]
[323422740,1713976240774,-500.0,0.00010958,2]
[323422742,1713976240785,-500.0,0.00010958,2]
[323422744,1713976240797,-500.0,0.00010958,2]
[323422747,1713976240808,-500.0,0.00010958,2]
[323422748,1713976240818,-4367.33,0.00010958,2]
[323422750,1713976240827,-1550.3,0.00010958,2]
[323422753,1713976240838,-1320.6,0.00010958,2]
[323422754,1713976240849,-519.59,0.00010958,2]
[323422757,1713976240859,-500.0,0.00010958,2]
[323422758,1713976240872,-500.0,0.00010958,2]
[323422761,1713976240888,-2648.44,0.00010958,2]
[323422762,1713976240899,-500.0,0.00010958,2]
[323422765,1713976240910,-500.0,0.00010958,2]
[323422766,1713976240920,-500.0,0.00010958,2]
[323422769,1713976240931,-504.3450689,0.00010958,2]
[323422771,1713976240941,-2917.87,0.00010958,2]
[323422773,1713976240952,-4365.04,0.00010958,2]
[323422774,1713976240963,-503.54498219,0.00010958,2]
[323422776,1713976240974,-1297.57,0.00010958,2]
[323422779,1713976240985,-610.19,0.00010958,2]
[323422781,1713976240997,-500.0,0.00010958,2]
[323422782,1713976241006,-500.0,0.00010958,2]
[323422785,1713976241017,-8081.13,0.00010958,2]
[323422787,1713976241028,-1996.11,0.00010958,2]
[323422788,1713976241038,-1198.52,0.00010958,2]
[323422790,1713976241047,-3084.65,0.00010958,2]
[323422792,1713976241056,-500.0,0.00010958,2]
[323422794,1713976241067,-1659.5,0.00010958,2]
[323422797,1713976241076,-913.76,0.00010958,2]
[323422799,1713976241086,-1965.41,0.00010958,2]
[323422801,1713976241096,-881.97,0.00010958,2]
[323422803,1713976241106,-500.0,0.00010958,2]
[323422805,1713976241118,-500.0,0.00010958,2]
[323422807,1713976241132,-3063.39,0.00010958,2]
[323422809,1713976241142,-500.0,0.00010958,2]
[323422811,1713976241152,-1187.38,0.00010958,2]
[323422812,1713976241163,-1779.17,0.00010958,2]
[323422815,1713976241173,-1604.06,0.00010958,2]
[323422817,1713976241183,-500.0,0.00010958,2]
[323422819,1713976241194,-500.0,0.00010958,2]
[323422820,1713976241204,-500.0,0.00010958,2]
[323422822,1713976241214,-6175.45,0.00010958,2]
[323422824,1713976241224,-5311.69,0.00010958,2]
[323422826,1713976241235,-500.0,0.00010958,2]
[323422829,1713976241246,-500.0,0.00010958,2]
[323422830,1713976241256,-500.0,0.00010958,2]
[323422832,1713976241267,-2178.02,0.00010958,2]
[323422835,1713976241277,-1296.94,0.00010958,2]
[323422836,1713976241287,-500.0,0.00010958,2]
[323422838,1713976241296,-500.0,0.00010958,2]
[323422841,1713976241307,-591.15,0.00010958,2]
[323422843,1713976241317,-500.0,0.00010958,2]
[323422844,1713976241327,-3148.34,0.00010958,2]
[323422846,1713976241336,-872.64,0.00010958,2]
[323422848,1713976241346,-549.47,0.00010958,2]
[323422850,1713976241355,-227.97185166,0.00010958,2]
[323422852,1713976241365,-911.06,0.00010958,2]
[323422855,1713976241376,-3053.76,0.00010958,2]
[323422856,1713976241386,-500.0,0.00010958,2]
[323422858,1713976241396,-1324.88,0.00010958,2]
[323422860,1713976241405,-1375.05,0.00010958,2]
[323422863,1713976241416,-746.39,0.00010958,2]
[323422865,1713976241425,-2805.05,0.00010958,2]
[323422867,1713976241434,-1037.34,0.00010958,2]
[323422869,1713976241443,-500.0,0.00010958,2]
[323422870,1713976241452,-960.9,0.00010958,2]
[323422872,1713976241461,-1177.67,0.00010958,2]
[323422874,1713976241470,-500.0,0.00010958,2]
[323422876,1713976241479,-5007.68,0.00010958,2]
[323422878,1713976241488,-604.76,0.00010958,2]
[323422880,1713976241498,-1713.56,0.00010958,2]
[323422882,1713976241507,-993.66,0.00010958,2]
[323422884,1713976241517,-3361.85,0.00010958,2]
[323422887,1713976241526,-982.57,0.00010958,2]
[323422888,1713976241536,-500.0,0.00010958,2]
[323422891,1713976241546,-541.47,0.00010958,2]
[323422892,1713976241555,-816.12,0.00010958,2]
[323422894,1713976241564,-500.0,0.00010958,2]
[323422896,1713976241574,-500.0,0.00010958,2]
[323422898,1713976241583,-500.0,0.00010958,2]
[323422900,1713976241592,-500.0,0.00010958,2]
[323422902,1713976241602,-675.35,0.00010958,2]
[323422904,1713976241612,-2187.48,0.00010958,2]
[323422906,1713976241622,-2925.39,0.00010958,2]
[323422909,1713976241633,-2115.12,0.00010958,2]
[323422910,1713976241642,-500.0,0.00010958,2]
[323422912,1713976241652,-500.0,0.00010958,2]
[323422914,1713976241661,-1824.0,0.00010958,2]
[323422916,1713976241670,-2338.0,0.00010958,2]
[323422918,1713976241679,-500.0,0.00010958,2]
[323422921,1713976241690,-1261.55,0.00010958,2]
[323422923,1713976241699,-957.51,0.00010958,2]
[323422925,1713976241708,-3129.43,0.00010958,2]
[323422926,1713976241718,-500.0,0.00010958,2]
[323422929,1713976241728,-9216.47,0.00010958,2]
[323422931,1713976241738,-1043.04,0.00010958,2]
[323422932,1713976241748,-500.0,0.00010958,2]
[323422934,1713976241759,-1391.34,0.00010958,2]
[323422937,1713976241770,-500.0,0.00010958,2]
[323422938,1713976241780,-1867.59,0.00010958,2]
[323422941,1713976241792,-500.0,0.00010958,2]
[323422943,1713976241802,-1528.0,0.00010958,2]
[323422944,1713976241812,-500.0,0.00010958,2]
[323422946,1713976241822,-500.0,0.00010958,2]
[323422948,1713976241835,-500.0,0.00010958,2]
[323422951,1713976241845,-900.23,0.00010958,2]
[323422952,1713976241856,-500.0,0.00010958,2]
[323422954,1713976241867,-1992.68,0.00010958,2]
[323422957,1713976241882,-5137.5,0.00010958,2]
[323422959,1713976241892,-500.0,0.00010958,2]
[323422961,1713976241902,-851.11,0.00010958,2]
[323422962,1713976241913,-1575.56,0.00010958,2]
[323422965,1713976241923,-500.0,0.00010958,2]
[323422967,1713976241932,-500.0,0.00010958,2]
[323422969,1713976241942,-2608.84,0.00010958,2]
[323422970,1713976241952,-500.0,0.00010958,2]
[323422972,1713976241962,-7758.68,0.00010958,2]
[323422974,1713976241973,-1135.85,0.00010958,2]
[323422976,1713976241982,-834.43,0.00010958,2]
[323422978,1713976241993,-500.0,0.00010958,2]
[323422980,1713976242002,-2309.45,0.00010958,2]
[323422983,1713976242012,-500.0,0.00010958,2]
[323422985,1713976242022,-820.12,0.00010958,2]
[323422986,1713976242032,-2774.93,0.00010958,2]
[323422989,1713976242042,-280.78,0.00010958,2]
[323422991,1713976242051,-2192.51,0.00010958,2]
[323422992,1713976242061,-2416.98,0.00010958,2]
[323422995,1713976242071,-500.0,0.00010958,2]
[323422997,1713976242081,-1213.21,0.00010958,2]
[323422998,1713976242091,-943.25,0.00010958,2]
[323423000,1713976242101,-768.28,0.00010958,2]
[323423002,1713976242113,-500.0,0.00010958,2]
[323423004,1713976242127,-1813.22,0.00010958,2]
[323423006,1713976242137,-1279.26,0.00010958,2]
[323423009,1713976242147,-1127.54,0.00010958,2]
[323423010,1713976242158,-1167.27,0.00010958,2]
[323423013,1713976242167,-508.59,0.00010958,2]
[323423014,1713976242176,-2095.87,0.00010958,2]
[323423016,1713976242185,-1553.99,0.00010958,2]
[323423019,1713976242195,-1839.75,0.00010958,2]
[323423020,1713976242205,-500.0,0.00010958,2]
[323423023,1713976242215,-584.71,0.00010958,2]
[323423025,1713976242225,-636.69,0.00010958,2]
[323423027,1713976242235,-3418.02,0.00010958,2]
[323423029,1713976242244,-1220.46,0.00010958,2]
[323423031,1713976242253,-2799.01,0.00010958,2]
[323423033,1713976242262,-500.0,0.00010958,2]
[323423035,1713976242271,-4314.83,0.00010958,2]
[323423036,1713976242280,-500.0,0.00010958,2]
[323423039,1713976242291,-500.0,0.00010958,2]
[323423041,1713976242301,-592.12,0.00010958,2]
[323423043,1713976242311,-500.0,0.00010958,2]
[323423045,1713976242320,-1945.28,0.00010958,2]
[323423048,1713976242329,-1232.81,0.00010958,2]
[323423051,1713976242338,-2272.15,0.00010958,2]
[323423054,1713976242347,-1584.98,0.00010958,2]
[323423057,1713976242356,-1559.8,0.00010958,2]
[323423059,1713976242365,-3166.0,0.00010958,2]
[323423063,1713976242378,-1218.47,0.00010958,2]
[323423066,1713976242387,-500.0,0.00010958,2]
[323423069,1713976242397,-644.11,0.00010958,2]
[323423072,1713976242406,-685.75,0.00010958,2]
[323423076,1713976242414,-5225.37,0.00010958,2]
[323423136,1713976242661,-500.0,0.00010958,2]
[323423138,1713976242671,-500.0,0.00010958,2]
[323423140,1713976242680,-2275.67,0.00010958,2]
[323423142,1713976242690,-3080.73,0.00010958,2]
[323423144,1713976242699,-500.0,0.00010958,2]
[323423146,1713976242709,-500.0,0.00010958,2]
[323423148,1713976242718,-785.82,0.00010958,2]
[323423150,1713976242728,-500.0,0.00010958,2]
[323423152,1713976242739,-1915.51,0.00010958,2]
[323423154,1713976242748,-500.0,0.00010958,2]
[323423156,1713976242757,-747.07,0.00010958,2]
[323423158,1713976242766,-1824.07,0.00010958,2]
[323423160,1713976242775,-4343.19,0.00010958,2]
[323423162,1713976242785,-219.3733968,0.00010958,2]
[323423164,1713976242796,-5977.1,0.00010958,2]
[323423166,1713976242806,-3121.44,0.00010958,2]
[323423168,1713976242816,-1232.48,0.00010958,2]
[323423171,1713976242825,-626.45,0.00010958,2]
[323423173,1713976242835,-500.0,0.00010958,2]
[323423174,1713976242846,-2365.18,0.00010958,2]
[323423177,1713976242855,-831.43,0.00010958,2]
[323423179,1713976242864,-500.0,0.00010958,2]
[323423181,1713976242879,-970.38,0.00010958,2]
[323423183,1713976242889,-500.0,0.00010958,2]
[323423185,1713976242899,-500.0,0.00010958,2]
[323423187,1713976242908,-500.0,0.00010958,2]
[323423189,1713976242916,-1965.03,0.00010958,2]
[323423191,1713976242926,-1171.25,0.00010958,2]
[323423193,1713976242935,-1489.46,0.00010958,2]
[323423194,1713976242945,-500.0,0.00010958,2]
[323423196,1713976242954,-868.55,0.00010958,2]
[323423198,1713976242964,-500.0,0.00010958,2]
[323423200,1713976242973,-958.46,0.00010958,2]
[323423202,1713976242983,-1857.9,0.00010958,2]
[323423204,1713976242992,-5047.2,0.00010958,2]
[323423206,1713976243001,-501.51721636,0.00010958,2]
[323423208,1713976243011,-640.25,0.00010958,2]
[323423210,1713976243020,-567.55,0.00010958,2]
[323423212,1713976243030,-500.0,0.00010958,2]
[323423214,1713976243038,-500.0,0.00010958,2]
[323423216,1713976243047,-956.3,0.00010958,2]
[323423218,1713976243057,-500.0,0.00010958,2]
[323423220,1713976243066,-2767.3,0.00010958,2]
[323423222,1713976243075,-2476.67,0.00010958,2]
[323423225,1713976243085,-10000.0,0.00010959,2]
[323423226,1713976243094,-1250.0,0.00011,2]
[323423229,1713976243104,-157.19,0.00011151,2]
[323423231,1713976243113,-210.24604904,0.00011222,2]
[323423233,1713976243122,-500.0,0.00011231,2]
[323423235,1713976243134,-500.0,0.00011231,2]
[323423237,1713976243143,-500.0,0.00011231,2]
[323423239,1713976243152,-578.55,0.00011231,2]
[323423241,1713976243162,-500.0,0.00011231,2]
[323423243,1713976243171,-500.0,0.00011232,2]
[323423244,1713976243181,-500.0,0.00011232,2]
[323423246,1713976243190,-500.0,0.00011232,2]
[323423249,1713976243200,-500.0,0.00011232,2]
[323423250,1713976243209,-500.0,0.00011232,2]
[323423252,1713976243218,-500.0,0.00011232,2]
[323423254,1713976243227,-500.0,0.00011232,2]
[323423256,1713976243236,-500.0,0.00011232,2]
[323423258,1713976243245,-500.0,0.00011232,2]
[323423262,1713976243256,-500.0,0.00011232,2]
[323423264,1713976243265,-500.0,0.00011232,2]
[323423268,1713976243274,-500.0,0.00011232,2]
[323423270,1713976243283,-500.0,0.00011232,2]
[323423272,1713976243292,-500.0,0.00011232,2]
[323423274,1713976243300,-500.0,0.00011232,2]
[323423275,1713976243310,-500.0,0.00011232,2]
[323423276,1713976243320,-500.0,0.00011232,2]
[323423277,1713976243330,-791.18,0.00011232,2]
[323423278,1713976243338,-500.0,0.00011232,2]
[323423279,1713976243348,-500.0,0.00011232,2]
[323423280,1713976243357,-500.0,0.00011232,2]
[323423281,1713976243366,-500.0,0.00011232,2]
[323423282,1713976243377,-507.83,0.00011232,2]
[323423283,1713976243386,-500.0,0.00011232,2]
[323423284,1713976243395,-734.4,0.00011232,2]
[323423285,1713976243404,-500.0,0.00011232,2]
[323423286,1713976243413,-191.97,0.00011232,2]
[323423287,1713976243423,-500.0,0.00011232,2]
[323423289,1713976243432,-500.0,0.00011232,2]
[323423291,1713976243441,-500.0,0.00011232,2]
[323423293,1713976243450,-500.0,0.00011232,2]
[323423295,1713976243459,-500.0,0.00011232,2]
[323423297,1713976243468,-820.26,0.00011232,2]
[323423299,1713976243477,-500.0,0.00011232,2]
[323423301,1713976243486,-500.0,0.00011232,2]
[323423303,1713976243496,-500.0,0.00011232,2]
[323423305,1713976243505,-1759.19,0.00011232,2]
[323423307,1713976243514,-740.61,0.00011232,2]
[323423309,1713976243523,-500.0,0.00011232,2]
[323423311,1713976243532,-500.0,0.00011232,2]
[323423313,1713976243541,-500.0,0.00011232,2]
[323423315,1713976243550,-500.0,0.00011232,2]
[323423317,1713976243559,-571.82,0.00011232,2]
[323423319,1713976243569,-500.0,0.00011232,2]
[323423321,1713976243578,-500.0,0.00011232,2]
[323423323,1713976243587,-500.0,0.00011232,2]
[323423325,1713976243596,-500.0,0.00011232,2]
[323423327,1713976243606,-634.48,0.00011232,2]
[323423329,1713976243615,-500.0,0.00011232,2]
[323423331,1713976243626,-500.0,0.00011232,2]
[323423333,1713976243635,-1181.58,0.00011232,2]
[323423335,1713976243645,-500.0,0.00011232,2]
[323423337,1713976243654,-603.08,0.00011232,2]
[323423339,1713976243663,-710.55,0.00011232,2]
[323423341,1713976243672,-644.08,0.00011232,2]
[323423343,1713976243681,-500.0,0.00011232,2]
[323423345,1713976243690,-569.21,0.00011232,2]
[323423347,1713976243699,-1086.95,0.00011232,2]
[323423349,1713976243708,-500.0,0.00011232,2]
[323423351,1713976243717,-500.0,0.00011232,2]
[323423353,1713976243726,-1712.03,0.00011232,2]
[323423355,1713976243734,-500.0,0.00011232,2]
[323423357,1713976243744,-500.0,0.00011232,2]
[323423359,1713976243753,-1159.56,0.00011232,2]
[323423361,1713976243762,-1454.53,0.00011232,2]
[323423363,1713976243770,-500.0,0.00011232,2]
[323423364,1713976243780,-1161.19,0.00011232,2]
[323423366,1713976243789,-500.0,0.00011232,2]
[323423369,1713976243801,-500.0,0.00011232,2]
[323423371,1713976243810,-500.0,0.00011232,2]
[323423373,1713976243819,-819.33,0.00011232,2]
[323423375,1713976243829,-500.0,0.00011232,2]